Cogmind - Beta 13 @@@ ROGUE MODE // 2024.05.20 @ 23:45:13 Player: Wicz Result: Destroyed by H-55 Commando with Gauss Rifle Performance ------------- Evolutions (3) 1500 Regions Visited (6) 1200 Robots Destroyed (52) 260 Value Destroyed (1497) 1497 Prototype IDs (1) 20 Alien Tech Used (0) 0 Bonus (260) 260 TOTAL SCORE: 4737 Bonus ------- High Alert Combat Kills 60 Entered Garrisons 200 Cogmind --------- Core Integrity 0/700 Matter 300/300 Energy 100/100 System Corruption 0% Temperature Cool (0) Movement Core (200) Ox3 Location -7/Factory Parts ------- > --- POWER (2) -------- (None) > --- PROPULSION (2) --- (None) > --- UTILITY (6) ------ Medium Storage Unit Melee Analysis Suite Melee Analysis Suite Target Analyzer > --- WEAPON (3) ------- (None) > --- INVENTORY (10) --- Gravmag System Trap Scanner Authchip [R/Combat] Authchip [R/Combat] Authchip [R/Combat] Relay Coupler [Specialist] (23) Peak State ------------ > --- POWER ------------ Light Ion Engine Micro Nuclear Core > --- PROPULSION ------- Improved Cesium-ion Thruster Improved Cesium-ion Thruster > --- UTILITY ---------- Improved Heat Sink Medium Storage Unit Trap Scanner Target Analyzer > --- WEAPON ----------- Shock Rifle EM Pulse Cannon Ripper > --- INVENTORY -------- Gravmag System Authchip [R/Combat] Authchip [R/Combat] Authchip [R/Combat] Relay Coupler [Specialist] Remote Datajack [Rating: 37] Favorites ----------- Power Ion Engine Engine Ion Engine Power Core Micro Nuclear Core Propulsion Light Treads Treads Light Treads Leg Carbon-fiber Leg Hover Unit Gravmag System Flight Unit Improved Cesium-ion Thruster Utility Medium Storage Unit Device Trap Scanner Storage Medium Storage Unit Processor Signal Interpreter Protection Improved Weapon Shielding Weapon Particle Cannon Energy Gun Shock Rifle Energy Cannon Particle Cannon Ballistic Gun Assault Rifle Launcher Mini Grenade Launcher Special Weapon Remote Datajack Slashing Weapon Ripper Build | -11 -10 -10 -9 -8 -8 -7 ------- Run | Yrd Mat Min Mat Mat Gar Fac Slots Evolved 6 | . . . 2 2 . 2 Power 1 | . . . . . . 1 Propulsion . | . . . . . . . Utility 4 | . . . 2 1 . 1 Weapon 1 | . . . . 1 . . Parts Attached 58 | 6 4 4 16 2 15 11 Power 9 | 1 . . 3 . 2 3 Engine 6 | 1 . . 3 . 2 . Core 3 | . . . . . . 3 Reactor . | . . . . . . . Propulsion 11 | 2 . . 2 . 3 4 Treads 5 | 2 . . 2 . 1 . Leg 2 | . . . . . . 2 Wheel . | . . . . . . . Hover 2 | . . . . . 2 . Flight 2 | . . . . . . 2 Utility 15 | 1 2 . 6 1 3 2 Device 5 | . 1 . 2 . 2 . Storage 2 | 1 . . 1 . . . Processor 5 | . 1 . 1 . 1 2 Hackware . | . . . . . . . Protection 3 | . . . 2 1 . . Artifact . | . . . . . . . Weapon 23 | 2 2 4 5 1 7 2 Energy Gun 1 | . . . . . 1 . Energy Cannon 9 | . 2 2 1 . 4 . Ballistic Gun 2 | 2 . . . . . . Ballistic Cannon . | . . . . . . . Launcher 4 | . . . 2 . 2 . Special Weapon 1 | . . . . . . 1 Impact Weapon . | . . . . . . . Slashing Weapon 6 | . . 2 2 1 . 1 Piercing Weapon . | . . . . . . . Special Melee Weapon . | . . . . . . . Unidentified Prototypes 1 | . . . . . . 1 Parts Lost 30 | . . . 4 . 12 14 Power 7 | . . . 1 . 2 4 Propulsion 10 | . . . 2 . 3 5 Utility 5 | . . . 1 . 3 1 Weapon 8 | . . . . . 4 4 Highest Loss Streak 12 | . . . 2 . 5 12 To Critical Strikes 1 | . . . . . . 1 Average Slot Usage (%) 86 | . 92 100 96 100 74 71 Engine 10 | . 14 14 10 9 8 5 Treads 15 | . 28 28 20 18 7 . Hover 1 | . . . . . 4 4 Device 6 | . . . 7 9 11 10 Storage 10 | . 14 14 11 9 9 7 Processor 9 | . 7 14 12 9 2 11 Protection 4 | . . . 11 18 5 . Energy Gun 1 | . . . . . 3 5 Energy Cannon 12 | . 23 27 10 . 4 4 Launcher 3 | . . . 2 18 9 . Slashing Weapon 5 | . . . 8 9 9 5 Naked Turns . | . . . . . . . Heaviest Build 34 | 13 19 18 30 24 32 34 Greatest Support 46 | 40 40 40 46 46 46 18 Greatest Overweight (x) 8 | . . . 7 . 8 5 Average Overweight (x) . | . . . . . . 1 Largest Inventory Capacity 10 | 8 8 8 10 10 10 10 Average Capacity 9 | 7 8 8 9 10 10 10 Most Carried 10 | 2 5 7 10 7 7 8 Average Carried 4 | . 3 5 5 6 4 5 Final Capacity 10 | 8 8 8 10 10 10 10 Final Carried 8 | 1 5 6 8 6 6 6 Class Distribution -------------------- 86% | Mutant 13% | Scavenger-Mutant Dominant Class ---------------- Mutant | -10/Materials Mutant | -10/Mines Mutant | -9/Materials Mutant | -8/Materials Mutant | -8/Garrison Scavenger-Mutant | -7/Factory Resources | -11 -10 -10 -9 -8 -8 -7 ----------- Run | Yrd Mat Min Mat Mat Gar Fac Matter Collected 980 | 246 30 11 135 . 299 259 Remotely 62 | . 10 . 52 . . . Salvage Created 1684 | 3 254 56 747 . 328 296 Parts 100 | 1 15 4 42 . 30 8 Haulers Intercepted . | . . . . . . . Recyclers Shooed 2 | 1 1 . . . . . Parts Field Recycled . | . . . . . . . Retrieved Matter . | . . . . . . . Parts Self-Destructed . | . . . . . . . Prevented . | . . . . . . . Kills | -11 -10 -10 -9 -8 -8 -7 ------- Run | Yrd Mat Min Mat Mat Gar Fac Combat Hostiles Destroyed 38 | . . 1 13 . 19 5 Melee 16 | . . . 5 . 7 4 Guns 1 | . . . . . . 1 Cannons 6 | . . 1 5 . . . AOE 14 | . . . 2 . 12 . Classes Destroyed 9 | 1 3 1 2 . 1 1 Worker 2 | 1 1 . . . . . Recycler 5 | . 2 . 2 . . 1 Mechanic 2 | . 1 . 1 . . . Watcher 5 | . 2 . 3 . . . Swarmer 18 | . . . 4 . 12 2 Grunt 8 | . . . 6 . 2 . Sentry 7 | . . 1 3 . 2 1 Hunter 2 | . . . . . . 2 Programmer 3 | . . . . . 3 . Best Kill Streak 6 | 1 3 1 4 . 6 2 Combat Bots Only 6 | . . 1 4 . 6 2 Max Kills in Single Turn 3 | 1 1 1 1 . 3 1 Gunslinging . | . . . . . . . Exploded 3 | . . . 1 . 3 . Melee 1 | . . . 1 . 1 1 Uniques/NPCs Destroyed . | . . . . . . . Combat | -11 -10 -10 -9 -8 -8 -7 -------- Run | Yrd Mat Min Mat Mat Gar Fac Hostile Shots Fired 401 | . . 4 89 . 141 167 Missed 109 | . . 1 24 . 43 41 Damage Taken 3881 | . . 44 757 . 1363 1717 Core 1247 | . . 15 157 . 364 711 Absorbed by Shields . | . . . . . . . Redirected to Shielding 151 | . . . 91 . 60 . Regen/Repaired (Parts) 46 | . . . . . . 46 Core Remaining (%) 71 | 100 . 94 60 . 33 . Volleys Fired 58 | 1 9 1 27 . 18 2 Largest 2 | 2 2 1 2 . 2 2 Hottest 136 | 40 136 68 136 . 126 113 Shots Fired 87 | 2 18 1 30 . 33 3 Gun 3 | 2 . . . . . 1 Cannon 50 | . 18 1 26 . 4 1 Launcher 33 | . . . 4 . 29 . Special 1 | . . . . . . 1 Kinetic 2 | 2 . . . . . . Thermal 36 | . 18 1 17 . . . Explosive 33 | . . . 4 . 29 . Electromagnetic 15 | . . . 9 . 4 2 Robot Hit Streak 16 | 1 6 2 14 . 16 9 Robot Miss Streak 8 | 1 2 . 8 . 2 . Penetration Max . | . . . . . . . Secondary Targets . | . . . . . . . Shots Hit Robots 88 | 1 10 1 35 . 30 11 Core Hits 70 | 2 7 1 20 . 24 16 Critical Kills . | . . . . . . . Critical Parts Destroyed . | . . . . . . . Critical Strikes 6 | . . . 2 . 4 . Sever 6 | . . . 2 . 4 . Melee Attacks 74 | . . 1 22 . 40 11 Impact . | . . . . . . . Slashing 74 | . . 1 22 . 40 11 Piercing . | . . . . . . . Sneak Attacks 4 | . . . 3 . . 1 Combat Hostiles . | . . . . . . . Follow-up Attacks . | . . . . . . . Damage Inflicted 3620 | 27 234 33 1304 . 1592 430 Guns 22 | 6 . . . . . 16 Cannons 723 | . 225 21 416 . 61 . Explosions 1127 | . . . 227 . 900 . Melee 1660 | . . . 655 . 631 374 Ramming 88 | 21 9 12 6 . . 40 Kinetic 6 | 6 . . . . . . Thermal 488 | . 225 21 242 . . . Explosive 1050 | . . . 150 . 900 . Electromagnetic 328 | . . . 251 . 61 16 Impact . | . . . . . . . Slashing 1660 | . . . 655 . 631 374 Piercing . | . . . . . . . Highest Corruption 8 | . . . 2 . 8 . Average Corruption 7 | . . . 2 . 7 . Corruption Purged . | . . . . . . . Corruption Blocked . | . . . . . . . Effects 13 | . . . 1 . 12 . Message Errors 5 | . . . 1 . 4 . Matter Fused 2 | . . . . . 2 . Heat Flow Errors 2 | . . . . . 2 . Energy Discharges 2 | . . . . . 2 . Parts Rejected 1 | . . . . . 1 . Data Loss (major) 1 | . . . . . 1 . Overload Shots . | . . . . . . . Overflow Damage 132 | . 1 . 43 . 70 18 Projectiles 1 | . 1 . . . . . Explosions 33 | . . . . . 33 . Melee 98 | . . . 43 . 37 18 Knockbacks 2 | . 1 1 . . . . Impact 2 | . 1 1 . . . . Kinetic . | . . . . . . . Secondary . | . . . . . . . Self-Inflicted Damage 201 | . . . 48 . 151 2 Shots 8 | . . . 3 . 5 . Rammed 19 | 6 1 3 . . . 9 Targets Rammed 41 | 7 1 3 . . . 30 Kicked 21 | . . . . . . 21 Crushed 1 | 1 . . . . . . Highest Temperature 244 | . 244 28 102 . 207 . Average Temperature 57 | . 100 17 30 . 42 . Received Heat Transfer 510 | . . 18 240 . 198 54 Siege Activations . | . . . . . . . Robots Corrupted 1 | . . . 1 . . . Combat Hostiles 1 | . . . 1 . . . Parts Fried 3 | . . . 3 . . . Impact Corruptions . | . . . . . . . Robots Melted . | . . . . . . . Combat Hostiles . | . . . . . . . Parts Melted . | . . . . . . . Heat Transferred 890 | . 407 37 446 . . . Parts Sabotaged . | . . . . . . . Parts Stolen . | . . . . . . . Parts Stripped . | . . . . . . . Power Chain Reactions 2 | . . . 2 . . . Alert | -11 -10 -10 -9 -8 -8 -7 ------- Run | Yrd Mat Min Mat Mat Gar Fac Peak Influence 649 | 5 72 62 287 120 649 370 Initial 340 | . 3 27 . 120 78 340 Average 193 | 2 52 17 128 120 433 288 Maximum Alert Level 2 | . . . 1 . 2 1 Low Security (%) 64 | 100 100 100 82 100 17 28 Level 1 15 | . . . 17 . 5 71 Level 2 20 | . . . . . 76 . Level 3 . | . . . . . . . Level 4 . | . . . . . . . Level 5 . | . . . . . . . High Security . | . . . . . . . Max Security . | . . . . . . . Squads Dispatched 2 | . . . 2 . . . Investigation 1 | . . . 1 . . . Extermination . | . . . . . . . Reinforcement 1 | . . . 1 . . . Assault . | . . . . . . . Garrison . | . . . . . . . Intercept . | . . . . . . . Searches Triggered . | . . . . . . . Construction Impeded . | . . . . . . . Haulers Reinforced . | . . . . . . . Active Scanning Responses . | . . . . . . . Cargo Convoy Interrupts . | . . . . . . . Stealth | -11 -10 -10 -9 -8 -8 -7 --------- Run | Yrd Mat Min Mat Mat Gar Fac Distress Signals 2 | . . . 1 . . 1 Communications Jammed . | . . . . . . . Distress Signals . | . . . . . . . Times Spotted 57 | . 3 1 21 . 23 9 Peak Tracking Total 7 | . 1 1 5 . 7 6 Tactical Retreats 4 | . . . . . 4 . Traps | -11 -10 -10 -9 -8 -8 -7 ------- Run | Yrd Mat Min Mat Mat Gar Fac Traps Triggered 3 | . . . 1 . 1 1 Indirectly . | . . . . . . . Trap Hack Attempts . | . . . . . . . Triggered . | . . . . . . . Disarmed . | . . . . . . . Reprogrammed . | . . . . . . . Reused . | . . . . . . . Traps Extracted . | . . . . . . . Installed . | . . . . . . . Triggered . | . . . . . . . Machines | -11 -10 -10 -9 -8 -8 -7 ---------- Run | Yrd Mat Min Mat Mat Gar Fac Machines Disabled 3 | . . . . . 3 . Max in Single Turn 1 | . . . . . 1 . Garrison Relay 1 | . . . . . 1 . Machines Repaired . | . . . . . . . Machines Dismantled . | . . . . . . . Machines Sabotaged . | . . . . . . . Overloaded Fab Kills . | . . . . . . . Hacking | -11 -10 -10 -9 -8 -8 -7 --------- Run | Yrd Mat Min Mat Mat Gar Fac Machines Accessed 8 | . 2 . 3 1 1 1 Terminals 5 | . 2 . 2 . 1 . Fabricators . | . . . . . . . Repair Stations 1 | . . . . . . 1 Recycling Units . | . . . . . . . Scanalyzers 1 | . . . 1 . . . Garrison Access 1 | . . . . 1 . . Total Hacks 21 | . 3 . 11 3 1 3 Successful 12 | . 1 . 7 1 1 2 Failed 9 | . 2 . 4 2 . 1 Catastrophic 2 | . 1 . 1 . . . Database Lockouts . | . . . . . . . Manual 3 | . 1 . 2 . . . Terminals 9 | . 3 . 5 . 1 . Fabricators . | . . . . . . . Repair Stations 3 | . . . . . . 3 Recycling Units . | . . . . . . . Scanalyzers 6 | . . . 6 . . . Garrison Access 3 | . . . . 3 . . Terminal Hacks 5 | . 1 . 3 . 1 . Record 1 | . . . 1 . . . Emergency Access Points 1 | . . . . . 1 . Alert Level 1 | . . . 1 . . . Hauler Manifests 2 | . 1 . 1 . . . Fabricator Hacks . | . . . . . . . Repair Station Hacks 2 | . . . . . . 2 Scan Component 1 | . . . . . . 1 Repair 1 | . . . . . . 1 Recycling Unit Hacks . | . . . . . . . Scanalyzer 4 | . . . 4 . . . Insert Component 2 | . . . 2 . . . Analyze 2 | . . . 2 . . . Garrison Access Hacks 1 | . . . . 1 . . Unlock Access 1 | . . . . 1 . . Unauthorized Hacks . | . . . . . . . Terminals . | . . . . . . . Fabricators . | . . . . . . . Repair Stations . | . . . . . . . Recycling Units . | . . . . . . . Scanalyzers . | . . . . . . . Garrison Access . | . . . . . . . Data Cores Recovered . | . . . . . . . Used . | . . . . . . . Hacking Detections 5 | . 1 . 2 1 . 1 Full Trace Events . | . . . . . . . Feedback Events . | . . . . . . . Feedback Blocked . | . . . . . . . Robot Schematics Acquired . | . . . . . . . Robots Built . | . . . . . . . Authchips . | . . . . . . . Time . | . . . . . . . Total Robot Build Rating . | . . . . . . . Part Schematics Acquired 2 | . . . 2 . . . Parts Built . | . . . . . . . Authchips . | . . . . . . . Time . | . . . . . . . Total Part Build Rating . | . . . . . . . Parts Repaired 1 | . . . . . . 1 Time 22 | . . . . . . 22 Parts Recycled . | . . . . . . . Recycled Matter . | . . . . . . . Retrieved Matter . | . . . . . . . Retrieved Components . | . . . . . . . Parts Scanalyzed 2 | . . . 2 . . . Part Schematics Acquired 2 | . . . 2 . . . Parts Damaged . | . . . . . . . Bothacking | -11 -10 -10 -9 -8 -8 -7 ------------ Run | Yrd Mat Min Mat Mat Gar Fac Used RIF Installer . | . . . . . . . Robots Hacked . | . . . . . . . Non-combat . | . . . . . . . Combat . | . . . . . . . Robot Hacks Applied . | . . . . . . . Relay Couplers Released 4 | . . . . . 4 . Machine Destruction 4 | . . . . . 4 . Fabnet Peak Effective % . | . . . . . . . Robots Rewired . | . . . . . . . Allies Hacked . | . . . . . . . Hacks Repelled . | . . . . . . . Allies | -11 -10 -10 -9 -8 -8 -7 -------- Run | Yrd Mat Min Mat Mat Gar Fac Total Allies . | . . . . . . . Largest Group . | . . . . . . . Highest-Rated Group . | . . . . . . . Highest-Rated Ally . | . . . . . . . Total Orders . | . . . . . . . Ally Attacks . | . . . . . . . Total Damage . | . . . . . . . Kills . | . . . . . . . Allies Corrupted . | . . . . . . . Allies Melted . | . . . . . . . Intel | -11 -10 -10 -9 -8 -8 -7 ------- Run | Yrd Mat Min Mat Mat Gar Fac Robot Analysis Total . | . . . . . . . Derelict Logs Recovered 2 | . . 2 . . . . Drone Launches . | . . . . . . . Drone Recoveries . | . . . . . . . Exploration | -11 -10 -10 -9 -8 -8 -7 ------------- Run | Yrd Mat Min Mat Mat Gar Fac Turns Passed 3750 | 226 321 828 796 30 986 563 Spaces Moved 1866 | 128 169 507 320 17 464 261 Core 23 | 4 . . 10 . 5 4 Treads 1420 | 124 169 507 310 17 293 . Legs 17 | . . . . . . 17 Wheels . | . . . . . . . Hover 286 | . . . . . 166 120 Flight 120 | . . . . . . 120 Fastest Speed 50 | 50 160 160 160 160 116 97 Average Speed 163 | 156 160 160 167 160 167 161 Slowest Speed 450 | 160 160 160 400 160 450 360 Overloaded Moves . | . . . . . . . Propulsion Burnouts . | . . . . . . . Robots Hopped . | . . . . . . . Cave-ins Triggered . | . . . . . . . Exploration Rate (%) 32 | 6 30 92 31 4 56 8 Regions Visited 6 Branch Regions 1 Pre-discovered Areas 1 | . . 1 . . . . Known Exits Taken 3 | . 1 1 . 1 . . Unknown Exits Taken 2 | 1 . . 1 . . . Scrap Searched . | . . . . . . . Spaces Dug 29 | . . 1 2 . 26 . Terrain Destroyed 210 | . . 1 21 . 188 . Melee 3 | . . 1 2 . . . Projectile . | . . . . . . . AOE 207 | . . . 19 . 188 . Terrain Rammed 2 | . . . 2 . . . Walls Destroyed . | . . . . . . . Machines Disabled . | . . . . . . . Actions | -11 -10 -10 -9 -8 -8 -7 --------- Run | Yrd Mat Min Mat Mat Gar Fac Total 2353 | 148 200 518 516 19 580 372 Wait 186 | . 13 . 105 . 21 47 Move 1859 | 127 168 506 319 17 461 261 Hop . | . . . . . . . Pick Up 51 | 7 5 2 16 . 12 9 Fast Attach . | . . . . . . . Attach 40 | 6 1 . 9 2 12 10 Detach 2 | . . . 1 . . 1 Swap 18 | . 3 4 7 . 3 1 Drop 9 | . . 1 8 . . . Fire 58 | 1 9 1 27 . 18 2 Melee 74 | . . 1 22 . 40 11 Ram 11 | . . . 2 . . 9 Kick 21 | . . . . . . 21 Crush 11 | 7 1 3 . . . . Escape Stasis 13 | . . . . . 13 . Rewire . | . . . . . . . Trap . | . . . . . . . Miscellaneous . | . . . . . . . Route ------- -11/Scrapyard -10/Materials -10/Mines (discovered 2 exits: *Mat x2) -9/Materials (discovered 3 exits: *Mat / *Sto x2) -8/Materials -8/Garrison (discovered 2 exits: *Fac x2) -7/Factory (discovered 1 exit: [*Low]) History --------- Turn | Location | Event 33 | -11/Scrapyard | Discovered new exit (range 16) 227 | -11/Scrapyard | Entered Materials 314 | -10/Materials | Build established: Mutant 487 | -10/Materials | Discovered new exit (range 9) 547 | -10/Materials | Identified exit to Mines 548 | -10/Materials | Entered Mines 624 | -10/Mines | A weapon hastily lodged in a ceiling crevice suddenly fell to the ground 761 | -10/Mines | Discovered new exit (range 9) 772 | -10/Mines | Identified exit to Materials 849 | -10/Mines | Joined a pair of Derelicts in attacking an 0b10 outpost 1361 | -10/Mines | Discovered exit to Materials (range 4) 1376 | -10/Mines | Entered Materials 1376 | -9/Materials | Evolved 2 slots: Utility x2 1377 | -9/Materials | Identified exit to Storage 1465 | -9/Materials | Discovered exit to Storage (range 6) 2165 | -9/Materials | Discovered new exit (range 3) 2172 | -9/Materials | Entered another Materials area 2172 | -8/Materials | Evolved 2 slots: Utility x1, Weapon x1 2202 | -8/Materials | Identified exit to Garrison 2202 | -8/Materials | Entered Garrison 2220 | -8/Garrison | Triggered checkpoint 2450 | -8/Garrison | Lost 3 parts (2n1u) 2628 | -8/Garrison | Discovered new exit (range 12) 2658 | -8/Garrison | Attempted to access garrison exit controls, blocked by remote lockdown 2671 | -8/Garrison | Triggered checkpoint 2798 | -8/Garrison | Core integrity fell below 50% 2841 | -8/Garrison | Lost 5 parts (1p1n1u2w) 2980 | -8/Garrison | Garrison Relay disabled 3140 | -8/Garrison | Triggered checkpoint 3168 | -8/Garrison | Discovered new exit (range 12) 3188 | -8/Garrison | Entered Factory 3188 | -7/Factory | Evolved 2 slots: Power x1, Utility x1 3380 | -7/Factory | Build established: Scavenger-Mutant 3413 | -7/Factory | Repaired Ripper 3695 | -7/Factory | Discovered new exit (range 16) 3700 | -7/Factory | Core integrity fell below 50% 3736 | -7/Factory | Core integrity fell below 20% 3751 | -7/Factory | Destroyed by H-55 Commando with Gauss Rifle Last Messages --------------- 03731_ Penetrated by Slug. 03731_ K-01 Serf destroyed. 03732_ Slammed into H-55 Commando. 03732_ K-01 Serf collects debris. 03734_ Penetrated by Slug. 03736_ Slammed into S-27 Virus. 03736_ K-01 Serf collects debris. 03737_ Penetrated by Slug. 03738_ Slammed into S-27 Virus. 03740_ K-01 Serf collects debris. 03741_ R-06 Scavenger collects Wheel. 03741_ K-01 Serf collects debris. 03744_ Slammed into S-27 Virus. 03745_ K-01 Serf collects debris. 03746_ Slammed into S-27 Virus. 03748_ Penetrated by Slug. 03748_ Slammed into S-27 Virus. 03748_ R-06 Scavenger collects Sml. Matter Pod. 03750_ Slammed into S-27 Virus. 03751_ Penetrated by Slug. Map ----- +----------------------------------------------------+ | ?????????????????????????????????????????????????? | | ?????????????????????????????????????????????????? | | ?????????????????????????????????????????????????? | | ?????????????????????????????????????????????????? | | ?????????????????????????????????????????????????? | | ?????????????????????????????????????????????????? | | ?????????????????????????????????????????????????? | | ?????????????????????????????????????????????????? | | ?????????????????????????????????????????????????? | | ?????????????????????????????????????????????????? | | ?????????????????????????????????????????????????? | | ?????????????????????????????????????????????????? | | ?????????????????????????????????????????????????? | | ?????????????????????????????????????????????????? | | ?????????????????????????????????????????????????? | | ?????????????????????????????????????????????????? | | ?????????????????????????????????????????????????? | | ?????????????????????????????????????????????????? | | ????????????????#################????????????????? | | ???????? ???# #????????????????? | | ???????# #??# #????????????????? | | ???????# #??# #????????????????? | | ???????# #??# #????????????????? | | ???????# #??# #????????????????? | | ???????# #??# k s #????????????????? | | ???????# #??# k @ #????????????????? | | ???????# #??# %% #????????????????? | | ???????# #??# r %%% #????????????????? | | ???????# #??# %h%%%% #????????????????? | | ???????# ###########+#########???????????????? | | ???????# !%= ! ??????????? | | ???????# ! ??????????? | | ???????# %